bitfinex-derivatives/quotes_SOLF0:USTF0_20250821
["timestamp","ask_amount","ask_price","bid_price","bid_amount"]
[1755810243733,215.94626735,180.23,180.16,3.88663318]
[1755810244043,6.77663318,180.26,180.17,2.93]
[1755810244442,2.89,180.23,180.14,2.93]
[1755810244640,2.89,180.2,180.12,3.88663318]
[1755810244833,2.89,180.24,180.15,2.93]
[1755810245038,2.89,180.24,180.15,6.81663318]
[1755810245239,3.88663318,180.23,180.15,2.93]
[1755810245440,2.89,180.22,180.15,2.93]
[1755810247845,3.88663318,180.27,180.16,3.88663318]
[1755810248045,2.89,180.26,180.17,2.93]
[1755810249546,3.88663318,180.25,180.17,2.93]
[1755810249740,3.88663318,180.25,180.09,3.88663318]
[1755810249741,2.89,180.22,180.13,6.81663318]
[1755810250938,2.89,180.2,180.13,2.93]
[1755810251341,3.88663318,180.19,180.09,6.81663318]
[1755810251738,2.89,180.18,180.09,2.93]
[1755810252741,2.89,180.18,180.07,3.88663318]
[1755810252742,3.88663318,180.15,180.05,377.12663318]
[1755810252941,2.89,180.14,180.05,376.17]
[1755810254047,2.89,180.14,180.06,2.93]
[1755810256648,2.89,180.14,180.06,6.81663318]
[1755810257544,2.89,180.14,180.06,2.93]
[1755810260348,3.88663318,180.17,180.08,2.93]
[1755810260651,2.89,180.16,180.08,2.93]
[1755810262752,3.88663318,180.18,180.08,2.93]
[1755810264356,3.09,180.19,180.09,3.88663318]
[1755810264551,3.09,180.19,180.1,2.95]
[1755810264552,3.09,180.18,180.1,2.95]
[1755810264754,3.09,180.13,180.07,2.95]
[1755810266059,6.97663318,180.16,180.07,2.95]
[1755810266661,3.09,180.16,180.07,2.95]
[1755810266859,3.09,180.16,180.08,3.88663318]
[1755810267056,3.09,180.16,180.09,2.95]
[1755810267262,6.97663318,180.19,180.09,2.95]
[1755810267854,3.09,180.18,180.09,2.95]
[1755810268764,6.97663318,180.18,180.09,2.95]
[1755810268959,3.88663318,180.18,180.09,2.95]
[1755810269165,3.09,180.15,180.06,3.88663318]
[1755810269360,3.09,180.15,180.07,2.95]
[1755810271061,3.88663318,180.14,180.03,4.63927647]
[1755810271270,3.09,180.11,180.02,4.63927647]
[1755810271559,3.09,180.11,180.01,7.58927647]
[1755810271966,3.09,180.11,180.02,3.88663318]
[1755810273168,3.09,180.11,180.01,7.58927647]
[1755810273367,3.09,180.11,180.01,11.47590965]
[1755810273763,3.09,180.09,180.01,7.58927647]
[1755810273965,3.09,180.09,180.01,2.95]
[1755810274575,3.09,180.09,179.99,373.12]
[1755810274762,3.09,180.09,180.0,2.95]
[1755810274967,3.09,180.09,180.01,2.95]
[1755810276469,3.09,180.09,180.01,6.83663318]
[1755810279679,3.09,180.09,179.99,377.75927647]
[1755810279872,3.09,180.07,179.97,4.63927647]
[1755810280177,3.09,180.05,179.96,11.47590965]
[1755810282375,3.09,180.05,179.96,6.83663318]
[1755810282677,6.97663318,180.05,179.96,6.83663318]
[1755810286576,3.09,180.04,179.96,2.95]
[1755810290579,217.72489787,180.08,180.0,2.95]
[1755810291381,3.09,180.07,179.97,3.88663318]
[1755810291576,3.09,180.06,179.96,6.83663318]
[1755810292786,3.09,180.06,179.96,2.95]
[1755810294784,3.09,180.06,179.97,3.88663318]
[1755810294985,3.09,180.06,179.98,2.85]
[1755810298782,3.09,180.06,180.01,2.85]
[1755810298982,3.09,180.06,180.02,2.85]
[1755810299485,214.63489787,180.08,180.01,2.85]
[1755810299884,3.06,180.07,180.01,2.85]
[1755810300281,214.63489787,180.08,180.04,2.85]
[1755810300481,214.63489787,180.08,180.03,3.88663318]
[1755810300482,214.63489787,180.08,180.05,2.85]
[1755810300682,214.63489787,180.08,180.07,2.85]
[1755810301084,3.06,180.12,180.05,3.88663318]
[1755810301386,3.06,180.16,180.08,2.85]
[1755810302288,3.06,180.16,180.1,2.85]
[1755810302684,3.06,180.2,180.12,2.85]
[1755810304385,3.06,180.2,180.11,3.88663318]
[1755810304386,3.06,180.2,180.14,2.85]
[1755810304984,3.06,180.2,180.08,4.63927647]
[1755810305191,3.06,180.2,180.11,2.85]
[1755810305489,3.06,180.2,180.11,6.73663318]
[1755810306189,3.06,180.2,180.14,2.85]
[1755810306785,3.06,180.2,180.15,3.88663318]
[1755810306985,3.06,180.2,180.16,2.85]
[1755810307488,6.21143778,180.3,180.09,3.88663318]
[1755810307489,3.06,180.28,180.2,2.85]
[1755810307686,3.06,180.28,180.21,3.88663318]
[1755810308082,373.28,180.34,180.23,3.88663318]
[1755810308280,3.06,180.35,180.28,2.85]
[1755810308485,3.06,180.35,180.29,3.88663318]
[1755810308893,3.06,180.35,180.28,2.85]
[1755810309286,3.06,180.39,180.29,3.88663318]
[1755810309685,3.88663318,180.38,180.28,2.85]
[1755810309886,3.88663318,180.36,180.28,2.85]
[1755810310091,3.06,180.35,180.28,2.85]
[1755810310889,3.06,180.35,180.25,3.88663318]
[1755810311089,3.88663318,180.34,180.23,2.85]
[1755810311293,3.88663318,180.34,180.24,3.88663318]
[1755810311994,3.06,180.35,180.26,3.88663318]
[1755810312391,3.06,180.35,180.26,2.85]
[1755810313392,3.06,180.38,180.26,2.85]
[1755810314995,3.06,180.38,180.19,140.42]
[1755810314996,3.06,180.38,180.29,2.85]
[1755810315293,3.06,180.42,180.29,2.85]
[1755810317196,3.06,180.42,180.32,2.85]
[1755810323397,3.06,180.42,180.29,2.98]
[1755810326097,6.31677592,180.4,180.29,2.98]
[1755810326400,2.92,180.39,180.29,2.98]
[1755810332400,3.87592858,180.38,180.29,2.98]
[1755810333697,3.87592858,180.36,180.29,2.98]
[1755810333903,2.92,180.33,180.26,2.98]
[1755810336001,3.87592858,180.32,180.23,2.98]
[1755810336198,2.92,180.31,180.23,2.98]
[1755810337699,3.87592858,180.3,180.23,2.98]
[1755810338907,2.92,180.29,180.23,2.98]
[1755810339100,2.92,180.27,180.2,2.98]
[1755810339700,3.87592858,180.3,180.2,3.87592858]
[1755810339905,6.79592858,180.32,180.23,2.98]
[1755810345013,2.92,180.32,180.24,2.98]
[1755810345605,2.92,180.32,180.25,3.87592858]
[1755810345810,2.92,180.32,180.26,2.98]
[1755810346507,2.92,180.35,180.27,3.87592858]
[1755810346709,2.92,180.35,180.28,2.98]
[1755810346915,2.92,180.35,180.3,2.98]
[1755810347108,2.92,180.42,180.33,3.87592858]
[1755810348210,2.92,180.42,180.34,2.98]
[1755810348412,2.92,180.42,180.34,6.85592858]
[1755810350518,2.92,180.42,180.34,12.40212858]
[1755810350716,2.92,180.42,180.34,6.85592858]
[1755810352210,215.52786502,180.43,180.37,2.98]
[1755810352420,2.92,180.45,180.38,3.87592858]
[1755810352611,2.92,180.45,180.39,2.98]
[1755810354417,3.87592858,180.49,180.41,2.92]
[1755810355113,3.06,180.5,180.41,2.92]
[1755810357216,3.06,180.5,180.42,3.87592858]
[1755810357521,3.06,180.5,180.43,2.92]
[1755810360016,3.06,180.5,180.42,3.87592858]
[1755810360217,3.06,180.49,180.4,3.87592858]
[1755810361513,3.06,180.49,180.41,2.92]
[1755810362320,3.06,180.49,180.43,2.92]
[1755810362524,214.55618455,180.53,180.44,3.87592858]
[1755810362724,214.55618455,180.53,180.45,2.92]
[1755810364325,214.55618455,180.53,180.46,3.87592858]
[1755810364521,214.55618455,180.53,180.36,8.51520505]
[1755810364522,211.49618455,180.53,180.48,3.87592858]
[1755810364724,3.06,180.56,180.49,2.92]
[1755810365127,3.06,180.56,180.5,3.87592858]
[1755810366028,3.06,180.56,180.46,3.87592858]
[1755810366824,3.06,180.56,180.48,3.87592858]
[1755810367018,3.06,180.56,180.5,3.87592858]
[1755810367729,3.06,180.56,180.49,2.92]
[1755810368030,3.06,180.56,180.46,6.79592858]
[1755810368224,3.06,180.56,180.42,372.52]
[1755810368225,3.06,180.56,180.48,3.87592858]
[1755810368424,3.06,180.56,180.49,2.92]
[1755810368822,3.06,180.56,180.5,3.87592858]
[1755810369021,3.06,180.56,180.49,6.79592858]
[1755810369424,3.06,180.56,180.49,12.33762858]
[1755810369822,3.06,180.56,180.49,6.79592858]
[1755810370326,3.06,180.56,180.42,372.52]
[1755810370327,3.06,180.55,180.47,3.87592858]
[1755810371132,3.06,180.55,180.48,2.92]
[1755810371722,3.06,180.55,180.47,3.87592858]
[1755810372120,3.06,180.55,180.45,3.87592858]
[1755810372530,3.06,180.55,180.46,2.92]
[1755810373432,3.06,180.55,180.47,3.87592858]
[1755810374835,3.06,180.55,180.46,2.92]
[1755810375035,3.06,180.54,180.46,2.92]
[1755810375230,3.87592858,180.53,180.44,2.92]
[1755810375435,3.87592858,180.53,180.44,8.4631]
[1755810375640,3.06,180.54,180.46,2.92]
[1755810376432,3.06,180.52,180.43,6.79592858]
[1755810376640,3.06,180.52,180.43,2.92]
[1755810378039,3.06,180.5,180.43,2.92]
[1755810379640,0.03653718,180.48,180.45,0.03802336]
[1755810379841,3.06,180.47,180.45,0.03802336]
[1755810382344,3.06,180.46,180.45,0.03802336]
[1755810383446,3.06,180.46,180.36,8.3957]
[1755810383641,3.87592858,180.45,180.36,2.85]
[1755810383844,2.9,180.44,180.36,2.85]
[1755810384049,2.9,180.44,180.36,8.3958]
[1755810384247,2.9,180.44,180.36,2.85]
[1755810384547,0.04153906,180.42,180.36,2.85]
[1755810385141,0.04153906,180.42,180.36,8.3958]
[1755810386948,0.04153906,180.42,180.36,2.85]
[1755810387143,2.9,180.41,180.36,2.85]
[1755810387347,2.9,180.4,180.36,2.85]
[1755810387750,2.9,180.39,180.36,2.85]
[1755810387953,2.9,180.39,180.33,142.71]
[1755810388348,2.9,180.42,180.33,142.71]
[1755810388549,2.9,180.42,180.34,3.87592858]
[1755810388749,0.04123194,180.38,180.35,2.85]
[1755810389150,0.04123194,180.38,180.36,2.85]
[1755810389450,0.04123194,180.38,180.37,2.85]
[1755810390047,0.04123194,180.38,180.34,3.87592858]
[1755810390352,0.04123194,180.38,180.37,2.85]
[1755810393659,0.04123194,180.38,180.35,2.85]
[1755810394160,0.04123194,180.38,180.36,2.85]
[1755810395059,0.04123194,180.38,180.34,2.85]
[1755810395256,0.04123194,180.38,180.33,145.4068]
[1755810395460,0.04123194,180.38,180.36,2.85]
[1755810396661,2.9,180.37,180.33,2.85]
[1755810397162,0.04123194,180.38,180.32,512.22]
[1755810397465,0.04123194,180.38,180.35,2.85]
[1755810400468,0.04123194,180.38,180.33,2.85]
[1755810400859,0.04123194,180.38,180.32,516.09592858]
[1755810401064,0.04123194,180.38,180.36,2.85]
[1755810401565,2.9,180.37,180.33,2.85]
[1755810401766,2.9,180.37,180.33,142.69]
[1755810401970,0.04123194,180.38,180.34,2.85]
[1755810402266,2.94123194,180.38,180.34,2.85]
[1755810402665,2.94123194,180.38,180.35,2.85]
[1755810405569,0.04123194,180.38,180.34,2.85]
[1755810405967,0.04123194,180.38,180.36,2.85]
[1755810406171,2.94123194,180.38,180.34,2.85]
[1755810406466,2.94123194,180.38,180.33,139.84]
[1755810406771,0.04123194,180.38,180.34,6.72592858]
[1755810406971,0.04123194,180.38,180.37,2.85]
[1755810407167,0.04123194,180.38,180.37,142.67]
[1755810408268,2.94123194,180.38,180.34,2.85]
[1755810408474,0.04123194,180.38,180.34,139.82]
[1755810408972,0.04123194,180.38,180.36,2.85]
[1755810409369,0.04123194,180.38,180.37,2.85]
[1755810412766,0.04123194,180.38,180.37,6.72592858]
[1755810413968,0.04123194,180.38,180.37,2.85]
[1755810414162,0.04123194,180.38,180.37,142.65]
[1755810414567,0.04123194,180.38,180.37,2.85]
[1755810414768,0.04123194,180.38,180.37,142.63]
[1755810415177,0.04123194,180.38,180.37,139.78]
[1755810416076,0.04123194,180.38,180.36,139.78]
[1755810416368,0.04123194,180.38,180.37,2.96]
[1755810418868,0.04123194,180.38,180.34,142.72]
[1755810419071,3.02123194,180.38,180.34,142.72]
[1755810420276,3.02123194,180.38,180.35,2.96]
[1755810420277,0.04123194,180.38,180.35,2.96]
[1755810421373,0.04123194,180.38,180.32,2.96]
[1755810421573,2.98,180.36,180.32,2.96]
[1755810421773,2.98,180.35,180.27,372.6]
[1755810421981,2.98,180.35,180.31,2.96]
[1755810422281,2.98,180.39,180.29,6.83592858]
[1755810422672,0.036152,180.35,180.29,2.96]
[1755810423070,2.98,180.36,180.29,2.96]
[1755810423276,6.85592858,180.36,180.29,2.96]
[1755810423476,0.04174503,180.34,180.29,2.96]
[1755810423676,3.02174503,180.34,180.28,139.74]
[1755810423876,3.02174503,180.34,180.28,142.7]
[1755810424580,3.02174503,180.34,180.28,2.96]
[1755810424890,3.02174503,180.34,180.28,142.7]
[1755810426180,3.02174503,180.34,180.28,2.96]
[1755810426384,3.02174503,180.34,180.28,142.7]
[1755810430493,6.89767361,180.34,180.28,142.7]
[1755810430984,2.98,180.33,180.25,6.83592858]
[1755810431189,2.98,180.33,180.27,139.74]
[1755810432688,2.98,180.33,180.25,2.96]
[1755810432992,2.98,180.33,180.25,142.7]
[1755810437789,2.98,180.31,180.25,2.96]
[1755810437991,2.98,180.29,180.21,2.96]
[1755810438691,0.04259793,180.27,180.21,2.96]
[1755810444595,0.04259793,180.27,180.23,2.95]
[1755810445493,0.04259793,180.27,180.26,3.87592858]
[1755810445699,0.04259793,180.27,180.26,2.95]
[1755810446599,0.04259793,180.27,180.26,6.82592858]
[1755810446899,0.04259793,180.27,180.26,2.95]
[1755810447100,0.04259793,180.27,180.22,139.74]
[1755810447295,0.04259793,180.27,180.2,3.87592858]
[1755810447296,2.92259793,180.27,180.2,3.87592858]
[1755810447499,2.92259793,180.27,180.21,142.69]
[1755810447700,0.04259793,180.27,180.21,142.69]
[1755810447896,0.04259793,180.27,180.22,2.95]
[1755810449400,0.04259793,180.27,180.22,6.82592858]
[1755810449602,0.04259793,180.27,180.23,2.95]
[1755810449800,0.04259793,180.27,180.22,3.87592858]
[1755810450198,0.04259793,180.27,180.25,2.95]
[1755810450502,0.04259793,180.27,180.26,2.95]
[1755810451606,0.04259793,180.27,180.26,6.82592858]
[1755810453304,2.88,180.38,180.27,2.95]
[1755810453503,2.88,180.38,180.31,2.95]
[1755810454505,2.88,180.41,180.33,2.95]
[1755810454708,2.88,180.41,180.34,3.87592858]
[1755810455405,2.88,180.41,180.35,2.95]
[1755810457208,6.75592858,180.45,180.37,2.95]
[1755810457410,2.88,180.45,180.37,2.95]
[1755810458006,2.88,180.45,180.39,0.0376382]
[1755810459307,2.88,180.45,180.41,2.95]
[1755810459714,2.88,180.45,180.39,0.0376382]
[1755810459913,2.88,180.45,180.42,2.95]
[1755810460418,2.88,180.49,180.42,2.95]
[1755810461012,2.88,180.49,180.42,6.82592858]
[1755810461317,372.82,180.5,180.44,0.04123669]
[1755810461513,2.88,180.48,180.44,0.04123669]
[1755810462316,142.58,180.51,180.45,2.95]
[1755810462821,2.88,180.5,180.44,0.04123669]
[1755810464618,218.74157142,180.58,180.45,2.95]
[1755810464619,2.88,180.53,180.45,2.95]
[1755810466924,2.88,180.53,180.45,6.82592858]
[1755810467724,2.88,180.52,180.43,3.87592858]
[1755810468626,2.88,180.52,180.44,2.95]
[1755810470823,2.88,180.51,180.42,2.95]
[1755810471124,3.87592858,180.5,180.42,2.95]
[1755810471319,2.88,180.49,180.42,2.95]
[1755810479131,3.0,180.52,180.44,2.98]
[1755810479432,3.0,180.52,180.45,3.87592858]
[1755810480032,3.0,180.52,180.44,2.98]
[1755810480233,3.87592858,180.52,180.44,2.98]
[1755810480428,3.0,180.51,180.41,6.85592858]
[1755810481023,3.0,180.51,180.41,2.98]
[1755810481234,3.87592858,180.48,180.41,2.98]
[1755810481429,3.0,180.47,180.41,2.98]
[1755810481733,212.53013364,180.58,180.42,3.87592858]
[1755810481734,3.0,180.5,180.42,3.87592858]
[1755810481934,3.0,180.5,180.43,2.98]
[1755810482132,6.87592858,180.54,180.44,3.87592858]
[1755810482332,3.0,180.51,180.42,6.85592858]
[1755810482533,3.0,180.51,180.42,2.98]
[1755810482728,3.0,180.51,180.42,3.87592858]
[1755810482935,6.87592858,180.54,180.45,2.98]
[1755810483737,3.0,180.54,180.45,2.98]
[1755810484040,3.0,180.54,180.48,0.03643703]
[1755810484629,212.53013364,180.58,180.48,0.03643703]
[1755810484630,6.87592858,180.57,180.49,2.98]
[1755810484830,3.0,180.57,180.5,3.87592858]
[1755810485133,3.0,180.57,180.51,2.98]
[1755810485933,3.0,180.56,180.47,3.87592858]
[1755810486229,3.0,180.56,180.48,2.98]
[1755810486629,3.0,180.56,180.5,0.03566736]
[1755810487229,3.0,180.56,180.5,3.01566736]
[1755810487640,212.53013364,180.58,180.5,3.01566736]
[1755810487935,3.0,180.57,180.5,3.01566736]
[1755810488640,212.53013364,180.58,180.5,3.01566736]
[1755810489136,215.53013364,180.58,180.5,3.01566736]
[1755810489834,212.53013364,180.58,180.5,3.01566736]
[1755810490037,3.0,180.57,180.5,0.03566736]
[1755810490639,216.40606222,180.58,180.5,0.03566736]
[1755810490640,3.87592858,180.56,180.5,0.03566736]
[1755810490830,3.0,180.55,180.5,0.03566736]
[1755810491939,3.0,180.52,180.5,0.03566736]
[1755810492138,3.0,180.51,180.5,0.03566736]
[1755810496533,3.0,180.51,180.39,3.87592858]
[1755810496736,3.0,180.49,180.4,2.98]
[1755810497237,3.87592858,180.52,180.42,2.98]
[1755810497544,3.0,180.52,180.42,2.98]
[1755810497746,0.0387419,180.49,180.43,3.87592858]
[1755810497949,0.0387419,180.49,180.45,2.98]
[1755810498249,0.0387419,180.49,180.43,3.87592858]
[1755810498545,0.0387419,180.49,180.42,6.85592858]
[1755810498744,0.0387419,180.49,180.43,2.98]
[1755810498943,0.0387419,180.49,180.45,2.98]
[1755810499336,3.0,180.53,180.46,2.98]
[1755810499740,0.03939661,180.49,180.47,2.98]
[1755810499945,0.03939661,180.49,180.44,3.87592858]
[1755810500148,0.03939661,180.49,180.45,2.98]
[1755810500343,0.03939661,180.49,180.45,3.87592858]
[1755810500550,0.03939661,180.49,180.48,2.98]
[1755810504246,139.36,180.57,180.48,3.54]
[1755810504441,6.94592858,180.59,180.51,2.98]
[1755810504647,3.07,180.58,180.51,2.98]
[1755810504850,3.87592858,180.57,180.48,6.85592858]
[1755810505047,3.07,180.56,180.49,2.98]
[1755810505444,3.07,180.56,180.51,0.03747793]
[1755810505651,3.07,180.56,180.52,2.98]
[1755810506950,3.87592858,180.59,180.52,2.98]
[1755810507155,3.07,180.58,180.51,0.03747793]
[1755810509054,3.87592858,180.55,180.51,0.03747793]
[1755810509553,3.07,180.52,180.51,0.03747793]
[1755810510253,3.07,180.54,180.51,0.03747793]
[1755810512652,6.94592858,180.57,180.51,0.03747793]
[1755810513359,3.07,180.57,180.51,0.03747793]
[1755810513657,3.07,180.57,180.51,3.01747793]
[1755810514152,208.57926526,180.6,180.51,3.01747793]
[1755810514356,208.57926526,180.6,180.53,2.98]
[1755810515161,211.64926526,180.6,180.56,2.98]
[1755810515858,211.64926526,180.6,180.56,3.01530102]
[1755810516054,208.57926526,180.6,180.57,2.98]
[1755810516755,208.57926526,180.6,180.56,0.03530102]
[1755810516756,208.57926526,180.6,180.58,2.98]
[1755810517058,3.07,180.62,180.58,2.98]
[1755810517457,3.07,180.62,180.56,3.87592858]
[1755810517659,3.07,180.65,180.57,2.98]
[1755810517858,3.07,180.65,180.58,0.03651457]
[1755810518355,3.07,180.65,180.59,2.98]
[1755810518556,3.07,180.65,180.6,3.87592858]
[1755810518754,3.07,180.68,180.61,2.98]
[1755810519655,3.87592858,180.7,180.63,0.03495796]
[1755810519656,3.07,180.69,180.63,0.03495796]
[1755810519859,6.94592858,180.69,180.63,0.03495796]
[1755810520055,3.07,180.67,180.63,0.03495796]
[1755810520261,3.07,180.65,180.63,0.03495796]
[1755810520662,3.07,180.65,180.61,2.98]
[1755810520861,3.07,180.68,180.62,2.98]
[1755810521063,3.07,180.68,180.62,3.01645215]
[1755810521765,3.07,180.68,180.62,0.03645215]
[1755810524468,6.94592858,180.68,180.62,0.03645215]
[1755810524662,3.07,180.67,180.62,0.03645215]
[1755810527765,3.87592858,180.64,180.62,0.03645215]
[1755810527965,3.07,180.63,180.62,0.03645215]
[1755810528963,3.07,180.63,180.54,3.87592858]
[1755810529565,3.07,180.61,180.53,2.98]
[1755810529964,3.07,180.59,180.5,3.87592858]
[1755810530169,3.07,180.59,180.51,3.01]
[1755810530170,3.10832391,180.59,180.51,3.01]
[1755810532466,3.10832391,180.59,180.48,3.87592858]
[1755810532467,3.07,180.57,180.48,6.88592858]
[1755810533161,0.03737021,180.54,180.48,6.88592858]
[1755810537467,0.03737021,180.54,180.49,3.02]
[1755810537671,0.03737021,180.54,180.48,3.87592858]
[1755810537870,0.03737021,180.54,180.51,3.02]
[1755810538064,0.03737021,180.54,180.52,3.02]
[1755810541573,0.03737021,180.54,180.5,3.87592858]
[1755810541776,0.03737021,180.54,180.51,3.02]
[1755810541971,0.03737021,180.54,180.5,3.87592858]
[1755810542176,0.03737021,180.54,180.53,3.02]
[1755810547775,0.03737021,180.54,180.51,3.02]
[1755810548874,0.03737021,180.54,180.47,3.02]
[1755810550882,0.03737021,180.54,180.47,6.89592858]
[1755810552079,0.03737021,180.54,180.47,3.02]
[1755810552283,2.94737021,180.54,180.47,3.02]
[1755810557086,2.94737021,180.54,180.46,3.87592858]
[1755810559188,2.94737021,180.54,180.46,6.89592858]
[1755810561887,2.91,180.53,180.46,3.02]
[1755810564588,3.87592858,180.53,180.46,3.02]
[1755810564787,2.93,180.52,180.46,3.02]
[1755810565093,2.93,180.52,180.44,3.87592858]
[1755810565289,2.93,180.52,180.43,2.94]
[1755810565786,0.0385259,180.49,180.43,2.94]
[1755810565992,2.9685259,180.49,180.43,2.94]
[1755810575694,2.9685259,180.49,180.42,3.87592858]
[1755810575695,0.0385259,180.49,180.48,3.87592858]
[1755810575892,0.0385259,180.49,180.48,6.81592858]
[1755810576798,0.0385259,180.49,180.48,2.94]
[1755810577199,2.9685259,180.49,180.44,3.87592858]
[1755810577398,0.0385259,180.49,180.45,2.94]
[1755810577595,0.0385259,180.49,180.48,2.94]
[1755810577898,0.0385259,180.49,180.48,6.81592858]
[1755810582108,220.19393807,180.63,180.49,2.94]
[1755810582109,2.93,180.6,180.49,2.94]
[1755810582303,2.93,180.6,180.53,3.87592858]
[1755810582707,2.93,180.6,180.53,6.81592858]
[1755810583302,2.93,180.6,180.56,2.94]
[1755810583500,217.85842887,180.63,180.56,2.94]
[1755810583808,2.93,180.59,180.56,2.94]
[1755810592512,2.93,180.62,180.56,2.94]
[1755810592808,2.93,180.62,180.55,0.03868079]
[1755810595420,3.07,180.6,180.55,0.03868079]
[1755810596617,3.07,180.58,180.55,0.03868079]
[1755810598311,3.87592858,180.59,180.55,0.03868079]
[1755810598514,3.07,180.62,180.55,0.03868079]
[1755810600520,3.07,180.6,180.55,0.03868079]
[1755810608322,3.07,180.59,180.55,0.03868079]
[1755810609532,138.74,180.6,180.55,0.03868079]
[1755810610032,3.07,180.57,180.55,0.03868079]
[1755810610232,3.07,180.56,180.55,0.03868079]
[1755810618134,3.07,180.56,180.46,8.52224824]
[1755810618135,3.63,180.56,180.46,2.82]
[1755810618335,3.87592858,180.54,180.46,2.82]
[1755810618535,3.07,180.53,180.46,2.82]
[1755810619439,0.04153647,180.51,180.46,2.82]
[1755810619736,0.04153647,180.51,180.48,2.82]
[1755810619937,0.04153647,180.51,180.49,2.82]
[1755810620839,0.04153647,180.51,180.47,2.82]
[1755810621837,0.04153647,180.51,180.45,8.52224824]
[1755810622339,0.04153647,180.51,180.49,2.82]
[1755810622541,0.04153647,180.51,180.46,2.82]
[1755810622943,3.09153647,180.51,180.48,2.81]
[1755810624441,0.04153647,180.51,180.48,2.81]
[1755810624639,3.05,180.5,180.48,2.81]
[1755810625237,3.05,180.5,180.45,2.81]
[1755810625444,0.04153647,180.51,180.43,8.52224824]
[1755810625640,3.05,180.49,180.46,2.81]
[1755810625940,3.05,180.49,180.47,2.81]
[1755810626339,3.09153647,180.51,180.47,2.81]
[1755810626537,0.04153647,180.51,180.47,2.81]
[1755810626734,3.05,180.5,180.47,2.81]
[1755810628843,3.05,180.5,180.44,2.81]
[1755810631143,3.05,180.5,180.44,8.3532]
[1755810631340,0.04153647,180.51,180.45,3.87592858]
[1755810631542,3.09153647,180.51,180.45,2.81]
[1755810636250,6.96746505,180.51,180.45,2.81]
[1755810636551,3.05,180.49,180.45,2.81]
[1755810636848,3.05,180.48,180.45,2.81]
[1755810641758,3.91746505,180.51,180.45,2.81]
[1755810641958,3.05,180.5,180.45,2.81]
[1755810642156,3.05,180.48,180.45,2.81]
[1755810642554,3.05,180.5,180.43,2.81]
[1755810643253,0.04006748,180.48,180.43,2.81]
[1755810643454,3.05,180.47,180.44,2.81]
[1755810654069,3.05,180.47,180.42,2.47761595]
[1755810654272,3.05,180.47,180.45,2.93]
[1755810657578,0.04006748,180.48,180.46,2.93]
[1755810658277,3.14006748,180.48,180.46,2.93]
[1755810660178,3.1,180.46,180.44,2.93]
[1755810660773,2.47761595,180.47,180.41,2.47761595]
[1755810660973,3.1,180.42,180.39,2.93]
[1755810661669,6.21143778,180.5,180.34,6.19320946]
[1755810661670,2.47761595,180.41,180.34,6.19320946]
[1755810661874,2.47761595,180.41,180.35,5.40761595]
[1755810662174,2.47761595,180.41,180.35,2.93]
[1755810662374,3.13921327,180.42,180.35,2.93]
[1755810663381,0.03921327,180.42,180.38,2.93]
[1755810663571,0.03921327,180.42,180.4,2.93]
[1755810664074,0.03921327,180.42,180.41,2.93]
[1755810667184,0.03921327,180.42,180.39,2.93]